Cogmind - Beta 13 @@@ ROGUE MODE // 2024.07.07 @ 14:18:40 Player: weedlord420 Result: Self-destructed Performance ------------- Evolutions (1) 500 Regions Visited (3) 600 Robots Destroyed (44) 220 Value Destroyed (959) 959 Prototype IDs (1) 20 Alien Tech Used (0) 0 Bonus (106) 106 TOTAL SCORE: 2405 Bonus ------- Follower Combat Kills 106 Cogmind --------- Core Integrity 285/400 Matter 202/300 Energy 257/280 System Corruption 0% Temperature Cool (6) Movement Treading (160) Location -9/Materials Parts ------- > --- POWER (1) -------- Heavy Ion Engine > --- PROPULSION (4) --- Light Treads Light Treads Light Treads Light Treads > --- UTILITY (2) ------ Medium Storage Unit Shield Generator > --- WEAPON (2) ------- Heavy Assault Rifle Heavy Assault Rifle > --- INVENTORY (10) --- Nuclear Core Nuclear Core Improved Hover Unit Cooling System Melee Analysis Suite Melee Analysis Suite Improved Utility Shielding Shield Generator Rocket Launcher Heavy Mace Peak State ------------ > --- POWER ------------ Nuclear Core > --- PROPULSION ------- Light Treads Light Treads Light Treads Light Treads > --- UTILITY ---------- Medium Storage Unit Shield Generator > --- WEAPON ----------- Heavy Assault Rifle Heavy Assault Rifle > --- INVENTORY -------- Nuclear Core Cooling System Melee Analysis Suite Melee Analysis Suite Improved Utility Shielding Shield Generator Grenade Launcher Rocket Launcher Heavy Mace [Rating: 16] Favorites ----------- Power Ion Engine Engine Ion Engine Power Core Nuclear Core Propulsion Light Treads Treads Light Treads Utility Shield Generator Device Shield Generator Storage Medium Storage Unit Weapon Heavy Assault Rifle Ballistic Gun Heavy Assault Rifle Build | -11 -10 -10 -9 ------- Run | Yrd Mat Min Mat Slots Evolved 2 | . . . 2 Power . | . . . . Propulsion 2 | . . . 2 Utility . | . . . . Weapon . | . . . . Parts Attached 26 | 6 9 1 10 Power 5 | 1 2 . 2 Engine 4 | 1 2 . 1 Core 1 | . . . 1 Reactor . | . . . . Propulsion 8 | 2 2 . 4 Treads 8 | 2 2 . 4 Leg . | . . . . Wheel . | . . . . Hover . | . . . . Flight . | . . . . Utility 7 | 1 3 1 2 Device 4 | . 2 1 1 Storage 3 | 1 1 . 1 Processor . | . . . . Hackware . | . . . . Protection . | . . . . Artifact . | . . . . Weapon 6 | 2 2 . 2 Energy Gun . | . . . . Energy Cannon . | . . . . Ballistic Gun 6 | 2 2 . 2 Ballistic Cannon . | . . . . Launcher . | . . . . Special Weapon . | . . . . Impact Weapon . | . . . . Slashing Weapon . | . . . . Piercing Weapon . | . . . . Special Melee Weapon . | . . . . Unidentified Prototypes 1 | . . . 1 Parts Lost 1 | . 1 . . Power 1 | . 1 . . Propulsion . | . . . . Utility . | . . . . Weapon . | . . . . Highest Loss Streak 1 | . 1 . . To Critical Strikes . | . . . . Average Slot Usage (%) 98 | . 96 100 100 Engine 10 | . 11 14 2 Core 1 | . . . 8 Treads 31 | . 28 28 44 Device 13 | . 13 14 10 Storage 13 | . 14 14 11 Ballistic Gun 26 | . 28 28 22 Naked Turns . | . . . . Heaviest Build 26 | 14 23 23 26 Greatest Support 80 | 40 40 40 80 Greatest Overweight (x) . | . . . . Average Overweight (x) . | . . . . Largest Inventory Capacity 10 | 8 10 10 10 Average Capacity 9 | 6 9 10 10 Most Carried 10 | 5 9 10 10 Average Carried 7 | . 7 8 9 Final Capacity 10 | 8 10 10 10 Final Carried 10 | . 8 10 10 Class Distribution -------------------- 100% | Mutant Dominant Class ---------------- Mutant | -10/Materials Mutant | -10/Mines Mutant | -9/Materials Resources | -11 -10 -10 -9 ----------- Run | Yrd Mat Min Mat Matter Collected 1191 | 155 627 49 360 Remotely . | . . . . Salvage Created 1528 | . 740 . 788 Parts 106 | . 56 . 50 Haulers Intercepted 4 | . 2 . 2 Recyclers Shooed 4 | . . . 4 Parts Field Recycled . | . . . . Retrieved Matter . | . . . . Parts Self-Destructed . | . . . . Prevented . | . . . . Kills | -11 -10 -10 -9 ------- Run | Yrd Mat Min Mat Combat Hostiles Destroyed 27 | . 14 . 13 Guns 27 | . 14 . 13 Classes Destroyed 11 | . 6 . 5 Worker 8 | . 5 . 3 Builder 1 | . 1 . . Hauler 4 | . 2 . 2 Recycler 1 | . . . 1 Operator 1 | . . . 1 Watcher 2 | . 1 . 1 Swarmer 4 | . 3 . 1 Grunt 20 | . 11 . 9 Brawler 1 | . . . 1 Duelist 1 | . . . 1 Sentry 1 | . . . 1 Best Kill Streak 6 | . 5 . 6 Combat Bots Only 4 | . 3 . 4 Max Kills in Single Turn 1 | . 1 . 1 Gunslinging . | . . . . Exploded . | . . . . Melee . | . . . . Uniques/NPCs Destroyed . | . . . . Combat | -11 -10 -10 -9 -------- Run | Yrd Mat Min Mat Hostile Shots Fired 149 | . 91 . 58 Missed 46 | . 30 . 16 Damage Taken 862 | . 459 . 403 Core 150 | . 35 . 115 Absorbed by Shields 339 | . 184 . 155 Regen/Repaired (Parts) 27 | . 27 . . Core Remaining (%) 93 | 100 . 86 . Volleys Fired 130 | . 72 . 58 Largest 2 | . 2 . 2 Hottest 46 | . 46 . 46 Shots Fired 262 | . 145 1 116 Gun 262 | . 145 1 116 Cannon . | . . . . Launcher . | . . . . Special . | . . . . Kinetic 262 | . 145 1 116 Thermal . | . . . . Explosive . | . . . . Electromagnetic . | . . . . Robot Hit Streak 10 | . 9 . 10 Robot Miss Streak 7 | . 7 . 5 Penetration Max . | . . . . Secondary Targets 3 | . . . 3 Max Gunslinging Chain 1 | . . . 1 Shots Hit Robots 151 | . 83 . 68 Core Hits 68 | . 36 . 32 Critical Kills . | . . . . Critical Parts Destroyed 1 | . . . 1 Critical Strikes 1 | . . . 1 Destroy 1 | . . . 1 Melee Attacks . | . . . . Impact . | . . . . Slashing . | . . . . Piercing . | . . . . Sneak Attacks . | . . . . Combat Hostiles . | . . . . Follow-up Attacks . | . . . . Damage Inflicted 2388 | . 1320 . 1068 Guns 2381 | . 1313 . 1068 Cannons . | . . . . Explosions . | . . . . Melee . | . . . . Ramming 7 | . 7 . . Kinetic 2381 | . 1313 . 1068 Thermal . | . . . . Explosive . | . . . . Electromagnetic . | . . . . Impact . | . . . . Slashing . | . . . . Piercing . | . . . . Highest Corruption 3 | . 3 3 . Average Corruption 2 | . 1 3 . Corruption Purged . | . . . . Corruption Blocked . | . . . . Effects 21 | . 13 8 . Message Errors 3 | . 2 1 . Matter Fused 6 | . 3 3 . Heat Flow Errors 3 | . 2 1 . Energy Discharges 4 | . 4 . . Data Loss (minor) 2 | . 1 1 . Data Loss (major) 1 | . . 1 . Misfires 2 | . 1 1 . Overload Shots . | . . . . Overflow Damage . | . . . . Projectiles . | . . . . Explosions . | . . . . Melee . | . . . . Knockbacks . | . . . . Impact . | . . . . Kinetic . | . . . . Secondary . | . . . . Self-Inflicted Damage . | . . . . Shots . | . . . . Rammed 1 | . 1 . . Targets Rammed 1 | . 1 . . Kicked . | . . . . Crushed . | . . . . Highest Temperature 279 | . 279 . 12 Average Temperature 69 | . 72 . 8 Received Heat Transfer 408 | . 211 . 197 Siege Activations . | . . . . Robots Corrupted . | . . . . Combat Hostiles . | . . . . Parts Fried . | . . . . Impact Corruptions . | . . . . Robots Melted . | . . . . Combat Hostiles . | . . . . Parts Melted . | . . . . Heat Transferred . | . . . . Parts Sabotaged . | . . . . Parts Stolen . | . . . . Parts Stripped . | . . . . Power Chain Reactions . | . . . . Alert | -11 -10 -10 -9 ------- Run | Yrd Mat Min Mat Peak Influence 361 | . 236 39 361 Initial 39 | . . 39 . Average 89 | . 100 23 163 Maximum Alert Level 1 | . 1 . 1 Low Security (%) 80 | 100 82 100 48 Level 1 19 | . 17 . 51 Level 2 . | . . . . Level 3 . | . . . . Level 4 . | . . . . Level 5 . | . . . . High Security . | . . . . Max Security . | . . . . Squads Dispatched 4 | . 3 . 1 Investigation 1 | . 1 . . Extermination . | . . . . Reinforcement 3 | . 2 . 1 Assault . | . . . . Garrison . | . . . . Intercept . | . . . . Searches Triggered . | . . . . Construction Impeded . | . . . . Haulers Reinforced . | . . . . Active Scanning Responses . | . . . . Cargo Convoy Interrupts . | . . . . Stealth | -11 -10 -10 -9 --------- Run | Yrd Mat Min Mat Distress Signals 4 | . 2 . 2 Communications Jammed . | . . . . Distress Signals . | . . . . Times Spotted 54 | . 29 . 25 Peak Tracking Total 5 | . 5 . 4 Tactical Retreats 2 | . 2 . . Traps | -11 -10 -10 -9 ------- Run | Yrd Mat Min Mat Traps Triggered 4 | . 4 . . Indirectly . | . . . . Trap Hack Attempts . | . . . . Triggered . | . . . . Disarmed . | . . . . Reprogrammed . | . . . . Reused . | . . . . Traps Extracted . | . . . . Installed . | . . . . Triggered . | . . . . Machines | -11 -10 -10 -9 ---------- Run | Yrd Mat Min Mat Machines Disabled 2 | . 1 . 1 Max in Single Turn 1 | . 1 . 1 Machines Repaired . | . . . . Machines Dismantled . | . . . . Machines Sabotaged . | . . . . Overloaded Fab Kills . | . . . . Hacking | -11 -10 -10 -9 --------- Run | Yrd Mat Min Mat Machines Accessed 4 | . 4 . . Terminals 3 | . 3 . . Fabricators . | . . . . Repair Stations 1 | . 1 . . Recycling Units . | . . . . Scanalyzers . | . . . . Garrison Access . | . . . . Total Hacks 12 | . 12 . . Successful 4 | . 4 . . Failed 8 | . 8 . . Catastrophic 1 | . 1 . . Database Lockouts . | . . . . Manual . | . . . . Terminals 10 | . 10 . . Fabricators . | . . . . Repair Stations 2 | . 2 . . Recycling Units . | . . . . Scanalyzers . | . . . . Garrison Access . | . . . . Terminal Hacks 2 | . 2 . . Locate Traps 1 | . 1 . . Registered Components 1 | . 1 . . Fabricator Hacks . | . . . . Repair Station Hacks 2 | . 2 . . Scan Component 1 | . 1 . . Repair 1 | . 1 . . Recycling Unit Hacks . | . . . . Scanalyzer . | . . . . Garrison Access Hacks . | . . . . Unauthorized Hacks . | . . . . Terminals . | . . . . Fabricators . | . . . . Repair Stations . | . . . . Recycling Units . | . . . . Scanalyzers . | . . . . Garrison Access . | . . . . Data Cores Recovered . | . . . . Used . | . . . . Hacking Detections 4 | . 4 . . Full Trace Events . | . . . . Feedback Events . | . . . . Feedback Blocked . | . . . . Robot Schematics Acquired . | . . . . Robots Built . | . . . . Authchips . | . . . . Time . | . . . . Total Robot Build Rating . | . . . . Part Schematics Acquired . | . . . . Parts Built . | . . . . Authchips . | . . . . Time . | . . . . Total Part Build Rating . | . . . . Parts Repaired 1 | . 1 . . Time 32 | . 32 . . Parts Recycled . | . . . . Recycled Matter . | . . . . Retrieved Matter . | . . . . Retrieved Components . | . . . . Parts Scanalyzed . | . . . . Part Schematics Acquired . | . . . . Parts Damaged . | . . . . Bothacking | -11 -10 -10 -9 ------------ Run | Yrd Mat Min Mat Used RIF Installer . | . . . . Robots Hacked . | . . . . Non-combat . | . . . . Combat . | . . . . Robot Hacks Applied . | . . . . Relay Couplers Released . | . . . . Fabnet Peak Effective % . | . . . . Robots Rewired . | . . . . Allies Hacked . | . . . . Hacks Repelled . | . . . . Allies | -11 -10 -10 -9 -------- Run | Yrd Mat Min Mat Total Allies 3 | . . 3 . Largest Group 3 | . . 3 3 Highest-Rated Group 40 | . . 40 40 Highest-Rated Ally 16 | . . 16 16 Total Orders . | . . . . Ally Attacks 26 | . . . 26 Total Damage 319 | . . . 319 Kills 6 | . . . 6 Allies Corrupted . | . . . . Allies Melted . | . . . . Intel | -11 -10 -10 -9 ------- Run | Yrd Mat Min Mat Robot Analysis Total . | . . . . Derelict Logs Recovered 1 | . . 1 . Drone Launches . | . . . . Drone Recoveries . | . . . . Exploration | -11 -10 -10 -9 ------------- Run | Yrd Mat Min Mat Turns Passed 2452 | 49 1255 667 481 Spaces Moved 1235 | 36 612 412 175 Core 18 | 18 . . . Treads 1217 | 18 612 412 175 Legs . | . . . . Wheels . | . . . . Hover . | . . . . Flight . | . . . . Fastest Speed 50 | 50 160 160 160 Average Speed 158 | 105 160 160 160 Slowest Speed 160 | 160 160 160 160 Overloaded Moves . | . . . . Propulsion Burnouts . | . . . . Robots Hopped . | . . . . Cave-ins Triggered . | . . . . Exploration Rate (%) 52 | 3 92 91 23 Regions Visited 3 Branch Regions 1 Pre-discovered Areas 1 | . . 1 . Known Exits Taken . | . . . . Unknown Exits Taken 3 | 1 1 1 . Scrap Searched 2 | . . 2 . Spaces Dug . | . . . . Terrain Destroyed . | . . . . Melee . | . . . . Projectile . | . . . . AOE . | . . . . Terrain Rammed . | . . . . Walls Destroyed . | . . . . Machines Disabled . | . . . . Actions | -11 -10 -10 -9 --------- Run | Yrd Mat Min Mat Total 1469 | 47 741 419 262 Wait 38 | . 33 5 . Move 1232 | 35 611 411 175 Hop . | . . . . Pick Up 31 | 6 13 2 10 Fast Attach . | . . . . Attach 11 | 6 2 . 3 Detach . | . . . . Swap 15 | . 7 1 7 Drop 11 | . 2 . 9 Fire 130 | . 72 . 58 Melee . | . . . . Ram . | . . . . Kick . | . . . . Crush 1 | . 1 . . Escape Stasis . | . . . . Rewire . | . . . . Trap . | . . . . Miscellaneous . | . . . . Route ------- -11/Scrapyard -10/Materials (discovered 5 exits: [*Mat x3] / [*Min x2]) -10/Mines (discovered 2 exits: [*Mat x2]) -9/Materials (discovered 1 exit: [*Min]) History --------- Turn | Location | Event 9 | -11/Scrapyard | Discovered new exit (range 15) 50 | -11/Scrapyard | Entered Materials 204 | -10/Materials | Discovered new exit (range 12) 303 | -10/Materials | Build established: Mutant 342 | -10/Materials | Discovered new exit (range 14) 476 | -10/Materials | Repaired Shield Generator 535 | -10/Materials | Discovered new exit (range 4) 915 | -10/Materials | Discovered new exit (range 7) 1093 | -10/Materials | Discovered new exit (range 7) 1305 | -10/Materials | Entered Mines 1306 | -10/Mines | Learned location of Storage (-8) 1609 | -10/Mines | Learned Materials stockpile data 1721 | -10/Mines | Received a Rocket Launcher from a helpful Derelict 1859 | -10/Mines | Discovered new exit (range 9) 1919 | -10/Mines | Discovered new exit (range 5) 1947 | -10/Mines | Assisted by bots powering up and referring to "LRC-V3" 1972 | -10/Mines | Entered Materials 1972 | -9/Materials | Accompanied by 3 allies 1972 | -9/Materials | Evolved 2 slots: Propulsion x2 2196 | -9/Materials | Lost 3 allies 2300 | -9/Materials | Discovered new exit (range 7) 2453 | -9/Materials | Self-destructed Last Messages --------------- G-34 Mercenary destroyed. B-36 Bruiser destroyed. Switching to secondary target: G-34 Mercenary. G-34 Mercenary destroyed. Machine disabled. K-01 Serf collects debris. G-34 Mercenary destroyed. K-01 Serf collects debris. A-02 Transporter sends out distress signal. K-01 Serf collects debris. R-06 Scavenger collects Aluminum Leg. K-01 Serf collects debris. R-06 Scavenger collects Aluminum Leg. K-01 Serf collects debris. Acquired 59 matter. R-06 Scavenger collects Sml. Laser. K-01 Serf collects debris. K-01 Serf destroyed. Critical hit (Burn: +26). Extracted 50 matter. Map ----- +----------------------------------------------------+ | ?????????????????????????????????????????????????? | | ?????????????????????????????????????????????????? | | ?????????????????????????????????????????????????? | | ?????????????????????????????????????????????????? | | ?????????????????????????????????????????????????? | | ?????????????????????????????????????????????????? | | ?????????????????????????????????????????????????? | | ????????????????????????????????????###+###??????? | | ????????????????????????????????????# #??????? | | ???????????????????????????????###### #??????? | | ???????????????????????????????? * #??????? | | ?????????????????????????????????#%[ #??????? | | ?????????????????????????????????#![ #??????? | | ??????????????# ????????????????# #??????? | | ??????????????# ????????????????# #??????? | | ??????????????# ???????????????# #??????? | | ??????????? ??# ########+####### ######## | | ??????????? ?# u % =% | | ??????????? # ! =[ | | ????????????? + ######### %!! * "" | | ??????????????# #""!"!""# !! % "" | | ?????????????## # "! !" # = "" | | ?????????????# # [ # ! % ^ ^ | | ?????????????# a w ==%* ! [=[ = | | ?????????????+ % %*!< g %! ![=!%[ ^ "" | | ?????????????# u !@/% g = = "" | | ?????????????# ##### = ##+########## "" | | ???????????????????????######### ????????# | | ???????????????????????????????# ????????# | | ???????????????????????????????# ???????# ! | | ???????????????????????????????/ ??????? | | ???????????????????????????????# ??????######+ | | ???????????????????????????????# ??????????? | | ???????????????????????????????# ?????????? | | ???????????????????????????????# ????????? | | ???????????????????????????????########???????? ? | | ???????????????????????????????????????????????? ? | | ?????????????????????????????????????????????????? | | ?????????????????????????????????????????????????? | | ?????????????????????????????????????????????????? | | ?????????????????????????????????????????????????? | | ?????????????????????????????????????????????????? | | ?????????????????????????????????????????????????? | | ?????????????????????????????????????????????????? | | ?????????????????????????????????????????????????? | | ?????????????????????????????????????????????????? | | ?????????????????????????????????????????????????? | | ?????????????????????????????????????????????????? | | ?????????????????????????????????????????????????? | | ?????????????????????????????????????????????????? | +----------------------------------------------------+ Best States ------------- Heat Dissipation 28 Energy Generation 14 Energy Capacity 340 Matter Stores 300 Matter Capacity 300 Sight Range 16 Terrain Scan Density 10 Evasion (%) 50 Recoil Reduction 4 Item Schematics ----------------- None Robot Schematics ------------------ None Fabricated ------------ Nothing Alien Tech Used ----------------- None Achievements -------------- None Challenges ------------ None Game ------ Seed FluxFieldClaymores Manual? 0 Play Time 00:14:14 Cumulative 21.2 hours Start 2024.06.14 @ 08:44:34 End 2024.07.07 @ 14:18:40 Sessions 3 Manual Loads 0 Difficulty Rogue Special Mode None Game No. 48 Rogue 47 Adventurer 1 Explorer 0 Win Type - Total 0 Types 0/0/0/0/0/0/0/0/0 Lore% 9 Gallery% 22 Achievement% 19 Wizard Run 0 Options --------- Layout 1 ASCII 0 Keyboard 0 Movement Mouse Keybinds 0 Fullscreen 2 Font 24/Terminus Map View 50x35 Zoom Use 0% Tactical HUD 0 Map Filters NONE Filters NONE Steam 1 RUN: a52bcc3f-0903-40ce-a4cc-171587682ce2